Cogmind - Beta 16 @@@ ROGUE MODE // 2026.01.24 @ 19:53:40 Player: mule Result: Destroyed by G-47 Trooper with Particle Gun Performance ------------- Evolutions (2) 1000 Regions Visited (3) 600 Robots Destroyed (38) 190 Value Destroyed (1194) 1194 Prototype IDs (3) 60 Alien Tech Used (0) 0 Bonus (0) 0 TOTAL SCORE: 3044 Bonus ------- None Cogmind --------- Core Integrity 0/550 Matter 97/300 Energy 399/455 System Corruption 0% Temperature Cool (18) Movement Walking (195) Ox1 Location -8/Materials Parts ------- > --- POWER (2) -------- Improved Ion Engine Improved Deuterium Engine > --- PROPULSION (3) --- Aluminum Leg Titanium Leg > --- UTILITY (3) ------ Medium Storage Unit Weight Redist. System Improved Targeting Computer > --- WEAPON (3) ------- Gauss Cannon Hammer > --- INVENTORY (10) --- Small Storage Unit Small Battery (100) Peak State ------------ > --- POWER ------------ Cooled Ion Engine Cooled Ion Engine > --- PROPULSION ------- Titanium Leg Titanium Leg Titanium Leg > --- UTILITY ---------- Medium Storage Unit Improved Targeting Computer Recalibrator > --- WEAPON ----------- Gauss Cannon Gauss Cannon Gauss Cannon > --- INVENTORY -------- Improved Deuterium Engine Improved Deuterium Engine Aluminum Leg Aluminum Leg Aluminum Leg Titanium Leg Small Storage Unit Small Battery Weight Redist. System Gauss Cannon [Rating: 36] Favorites ----------- Power Cooled Ion Engine Engine Cooled Ion Engine Propulsion Aluminum Leg Leg Aluminum Leg Wheel Wheel Utility Improved Targeting Computer Device Recalibrator Storage Small Storage Unit Processor Improved Targeting Computer Weapon Light Cannon Energy Gun EM Pulse Gun Ballistic Gun Heavy Assault Rifle Ballistic Cannon Light Cannon Launcher Rocket Launcher Impact Weapon Hammer Special Melee Weapon Improved Datajack Build | -11 -10 -9 -8 ------- Run | Yrd Mat Mat Mat Slots Evolved 4 | . . 2 2 Power 1 | . . . 1 Propulsion 1 | . . 1 . Utility 1 | . . 1 . Weapon 1 | . . . 1 Parts Attached 44 | 7 3 21 13 Power 10 | 1 1 4 4 Engine 10 | 1 1 4 4 Core . | . . . . Reactor . | . . . . Propulsion 11 | 2 . 7 2 Treads . | . . . . Leg 8 | 2 . 4 2 Wheel 3 | . . 3 . Hover . | . . . . Flight . | . . . . Utility 8 | 2 . 5 1 Device 5 | 1 . 3 1 Storage 2 | 1 . 1 . Processor 1 | . . 1 . Hackware . | . . . . Protection . | . . . . Artifact . | . . . . Weapon 15 | 2 2 5 6 Energy Gun 3 | 1 . 2 . Energy Cannon . | . . . . Ballistic Gun 3 | 1 . 2 . Ballistic Cannon 6 | . 2 . 4 Launcher 1 | . . 1 . Special Weapon . | . . . . Impact Weapon 1 | . . . 1 Slashing Weapon . | . . . . Piercing Weapon . | . . . . Special Melee Weapon 1 | . . . 1 Unidentified Prototypes 1 | . . 1 . Parts Lost 27 | . . 14 13 Power 6 | . . 3 3 Propulsion 8 | . . 3 5 Utility 4 | . . 3 1 Weapon 9 | . . 5 4 Highest Loss Streak 13 | . . 7 13 To Critical Strikes . | . . . . Average Backups 7 | 4 7 6 8 Power 1 | . . 1 1 Propulsion 3 | 2 4 2 3 Utility 1 | . 1 1 2 Weapon 1 | . 1 1 . Tool/Special . | . . . . Unused Backups 7 | . 3 1 3 Power 1 | . . . 1 Propulsion 3 | . 2 1 . Utility 2 | . 1 . 1 Weapon 1 | . . . 1 Tool/Special . | . . . . Average Slot Usage (%) 92 | . 100 89 91 Engine 13 | . 14 10 17 Leg 21 | . 28 15 25 Wheel 5 | . . 10 . Device 9 | . 14 9 7 Storage 10 | . 14 11 9 Processor 7 | . . 9 9 Energy Gun 1 | . 1 2 . Ballistic Gun 4 | . 1 9 . Ballistic Cannon 15 | . 24 8 19 Peak Build Rating 36 | 9 9 24 36 Average Rating 16 | 5 8 13 31 On Entrance 10 | . 9 9 24 Avg Prop Armor Cover (%) . | . . . . Naked Turns . | . . . . Heaviest Build 48 | 12 17 25 48 Greatest Support 51 | 20 20 51 51 Greatest Overweight (x) 8 | . . 8 1 Average Overweight (x) . | . . . . Largest Inventory Capacity 10 | 8 8 10 10 Average Capacity 8 | 7 8 8 10 Most Carried 10 | 8 8 10 10 Average Carried 7 | 4 7 6 8 Final Capacity 10 | 8 8 10 10 Final Carried 10 | 8 6 10 2 Class Distribution -------------------- 67% | Mutant 26% | Gunner 5% | Scavenger-Mutant Dominant Class ---------------- Mutant | -10/Materials Mutant | -9/Materials Gunner | -8/Materials Resources | -11 -10 -9 -8 ----------- Run | Yrd Mat Mat Mat Matter Collected 1199 | 263 62 490 384 Remotely . | . . . . Salvage Created 1235 | 27 48 674 486 Parts 63 | 4 2 39 18 Haulers Intercepted 2 | . . 2 . Recyclers Shooed 2 | . . 2 . Parts Field Recycled . | . . . . Retrieved Matter . | . . . . Parts Self-Destructed . | . . . . Prevented . | . . . . Parts Restored . | . . . . Kills | -11 -10 -9 -8 ------- Run | Yrd Mat Mat Mat Combat Hostiles Destroyed 27 | . 2 16 9 Guns 7 | . . 7 . Cannons 15 | . 2 6 7 AOE 3 | . . 3 . Classes Destroyed 12 | 1 1 8 2 Worker 2 | . . 1 1 Tunneler 1 | 1 . . . Hauler 2 | . . 2 . Recycler 2 | . . 1 1 Mechanic 1 | . . 1 . Watcher 3 | . . 1 2 Swarmer 3 | . . 3 . Grunt 14 | . 2 7 5 Brawler 1 | . . . 1 Duelist 1 | . . 1 . Sentry 7 | . . 5 2 Hunter 1 | . . . 1 Best Kill Streak 6 | 1 2 6 6 Combat Bots Only 5 | . 2 5 4 Max Kills in Single Turn 2 | 1 1 2 1 Gunslinging . | . . . . Exploded 1 | . . 1 . Melee . | . . . . Uniques/NPCs Destroyed . | . . . . Combat | -11 -10 -9 -8 -------- Run | Yrd Mat Mat Mat Hostile Shots Fired 359 | . 10 127 222 Missed 101 | . 6 28 67 Hits 258 | . 4 99 155 Melee 1 | . . . 1 Projectile 257 | . 4 99 154 Critical Strikes 8 | . . 1 7 Damage Taken 3702 | . 43 1298 2361 Core 818 | . . 256 562 Absorbed by Shields . | . . . . Core Remaining (%) 78 | 100 100 36 . Volleys Fired 92 | 3 7 63 19 Largest 3 | 2 2 2 3 Hottest 120 | 70 60 86 120 Shots Fired 198 | 6 14 121 57 Gun 64 | 6 . 58 . Cannon 120 | . 14 49 57 Launcher 14 | . . 14 . Special . | . . . . Kinetic 169 | 3 14 95 57 Thermal 5 | 3 . 2 . Explosive 14 | . . 14 . Electromagnetic 10 | . . 10 . Robot Hit Streak 18 | 5 8 18 9 Robot Miss Streak 6 | . 3 5 6 Penetration Max . | . . . . Secondary Targets . | . . . . Shots Hit Robots 133 | 5 7 88 33 Core Hits 58 | 4 2 33 19 Critical Kills . | . . . . Critical Parts Destroyed 3 | . . . 3 Critical Strikes 8 | . . 1 7 Blast 4 | . . . 4 Corrupt 1 | . . 1 . Smash 3 | . . . 3 Melee Attacks 8 | . . . 8 Impact 8 | . . . 8 Slashing . | . . . . Piercing . | . . . . Sneak Attacks . | . . . . Combat Hostiles . | . . . . Follow-up Attacks . | . . . . Damage Inflicted 3000 | 63 123 1759 1055 Guns 742 | 54 . 688 . Cannons 1573 | . 123 610 840 Explosions 440 | . . 440 . Melee 143 | . . . 143 Ramming 102 | 9 . 21 72 Kinetic 2138 | 17 123 1158 840 Thermal 161 | 37 . 124 . Explosive 345 | . . 345 . Electromagnetic 111 | . . 111 . Impact 143 | . . . 143 Slashing . | . . . . Piercing . | . . . . Highest Corruption . | . . . . Average Corruption . | . . . . Corruption Purged . | . . . . Corruption Blocked . | . . . . Overload Shots . | . . . . Overflow Damage 78 | . . . 78 Projectiles . | . . . . Explosions . | . . . . Melee 78 | . . . 78 Knockbacks 19 | . 1 5 13 Impact 2 | . . . 2 Kinetic 15 | . 1 4 10 Secondary 2 | . . 1 1 Self-Inflicted Damage 124 | . . 124 . Shots 4 | . . 4 . Rammed 2 | . . 1 1 Targets Rammed 20 | 4 . 2 14 Kicked 18 | 4 . 1 13 Crushed . | . . . . Highest Temperature 281 | 60 24 31 281 Average Temperature 64 | 27 15 8 88 Received Heat Transfer 1704 | . 24 366 1314 Effects 1 | . . . 1 Energy Bleed 1 | . . . 1 Siege Activations . | . . . . Martial Activations . | . . . . Shielding Activations . | . . . . Robots Disrupted . | . . . . Combat Hostiles . | . . . . Robots Corrupted 2 | . . . 2 Combat Hostiles 2 | . . . 2 Parts Fried 3 | . . . 3 Impact Corruptions 3 | . . . 3 Robots Melted . | . . . . Combat Hostiles . | . . . . Parts Melted . | . . . . Heat Transferred 385 | 111 . 274 . Parts Sabotaged . | . . . . Parts Stolen . | . . . . Parts Stripped . | . . . . Power Chain Reactions 1 | . . 1 . Alert | -11 -10 -9 -8 ------- Run | Yrd Mat Mat Mat Maximum Alert Level 1 | . . 1 1 Low Security (%) 93 | 100 100 91 89 Level 1 6 | . . 8 10 Level 2 . | . . . . Level 3 . | . . . . Level 4 . | . . . . Level 5 . | . . . . High Security . | . . . . Max Security . | . . . . Peak Influence 228 | 5 50 210 228 Initial 8 | . . 8 . Average 78 | . 9 111 88 Influence Increases 1024 | 5 64 554 401 Destroy 0b10 Robot/C 540 | . 40 320 180 Destroy 0b10 Robot/NC 55 | 5 . 30 20 Destroy Leader 170 | . 10 96 64 Successful Hack 14 | . 14 . . Disable Machine 75 | . . 15 60 Destroy Structure 80 | . . 48 32 Lose Combat Pursuer 90 | . . 45 45 Influence Decreases 915 | 5 44 574 292 Entered New Map 12 | . . 12 . Time Decay 483 | 5 44 272 162 Lost Part 270 | . . 140 130 Purge Threat 150 | . . 150 . Squads Dispatched 5 | . 2 1 2 Investigation 2 | . 2 . . Extermination . | . . . . Reinforcement 3 | . . 1 2 Assault . | . . . . Garrison . | . . . . Intercept . | . . . . Searches Triggered . | . . . . Construction Impeded 1 | . . . 1 Haulers Reinforced . | . . . . Active Scanning Responses . | . . . . Cargo Convoy Interrupts . | . . . . Stealth | -11 -10 -9 -8 --------- Run | Yrd Mat Mat Mat Distress Signals 8 | . 1 5 2 Communications Jammed . | . . . . Distress Signals . | . . . . Times Spotted 56 | . 3 25 28 Peak Tracking Total 15 | . 2 6 15 Tactical Retreats 2 | . . 1 1 Traps | -11 -10 -9 -8 ------- Run | Yrd Mat Mat Mat Traps Triggered 2 | . 2 . . Indirectly . | . . . . Trap Hack Attempts . | . . . . Triggered . | . . . . Disarmed . | . . . . Reprogrammed . | . . . . Reused . | . . . . Traps Extracted . | . . . . Installed . | . . . . Triggered . | . . . . Machines | -11 -10 -9 -8 ---------- Run | Yrd Mat Mat Mat Machines Disabled 5 | . . 1 4 Max in Single Turn 2 | . . 1 2 Machines Repaired . | . . . . Machines Dismantled . | . . . . Machines Sabotaged . | . . . . Overloaded Fab Kills . | . . . . Hacking | -11 -10 -9 -8 --------- Run | Yrd Mat Mat Mat Machines Accessed 7 | . 3 4 . Terminals 6 | . 3 3 . Fabricators . | . . . . Repair Stations . | . . . . Recycling Units 1 | . . 1 . Scanalyzers . | . . . . Garrison Access . | . . . . Total Hacks 15 | . 5 10 . Successful 8 | . 3 5 . Failed 7 | . 2 5 . Catastrophic 1 | . . 1 . Database Lockouts . | . . . . Manual . | . . . . Terminals 13 | . 5 8 . Fabricators . | . . . . Repair Stations . | . . . . Recycling Units 2 | . . 2 . Scanalyzers . | . . . . Garrison Access . | . . . . Terminal Hacks 6 | . 3 3 . Record 1 | . . 1 . Prototype ID Bank 1 | . 1 . . Alert Level 1 | . . 1 . Unreport Threat 1 | . . 1 . Hauler Manifests 1 | . 1 . . Registered Prototypes 1 | . 1 . . Fabricator Hacks . | . . . . Repair Station Hacks . | . . . . Recycling Unit Hacks 2 | . . 2 . Retrieve Matter 2 | . . 2 . Scanalyzer . | . . . . Garrison Access Hacks . | . . . . Unauthorized Hacks . | . . . . Terminals . | . . . . Fabricators . | . . . . Repair Stations . | . . . . Recycling Units . | . . . . Scanalyzers . | . . . . Garrison Access . | . . . . Data Cores Recovered . | . . . . Used . | . . . . Hacking Detections 3 | . 1 2 . Full Trace Events 1 | . . 1 . Feedback Events . | . . . . Feedback Blocked . | . . . . Robot Schematics Acquired . | . . . . Robots Built . | . . . . Authchips . | . . . . Time . | . . . . Total Robot Build Rating . | . . . . Part Schematics Acquired . | . . . . Parts Built . | . . . . Authchips . | . . . . Time . | . . . . Total Part Build Rating . | . . . . Part Studies Acquired . | . . . . Parts Repaired . | . . . . Time . | . . . . Parts Recycled . | . . . . Recycled Matter . | . . . . Retrieved Matter . | . . . . Retrieved Components . | . . . . Parts Scanalyzed . | . . . . Part Schematics Acquired . | . . . . Parts Damaged . | . . . . Bothacking | -11 -10 -9 -8 ------------ Run | Yrd Mat Mat Mat Used RIF Installer . | . . . . Robots Hacked . | . . . . Non-combat . | . . . . Combat . | . . . . Robot Hacks Applied . | . . . . Relay Couplers Released . | . . . . Fabnet Peak Effective % . | . . . . Robots Rewired . | . . . . Allies Hacked . | . . . . Hacks Repelled . | . . . . Allies | -11 -10 -9 -8 -------- Run | Yrd Mat Mat Mat Total Allies . | . . . . Largest Group . | . . . . Highest-Rated Group . | . . . . Highest-Rated Ally . | . . . . Total Orders . | . . . . Ally Attacks . | . . . . Total Damage . | . . . . Kills . | . . . . Allies Corrupted . | . . . . Allies Melted . | . . . . Intel | -11 -10 -9 -8 ------- Run | Yrd Mat Mat Mat Active Infowar (turns) 363 | 8 250 105 . Terrain 363 | 8 250 105 . Robot Analysis Total . | . . . . Derelict Logs Recovered . | . . . . Drone Launches . | . . . . Drone Recoveries . | . . . . Exploration | -11 -10 -9 -8 ------------- Run | Yrd Mat Mat Mat Turns Passed 1434 | 115 250 663 406 Spaces Moved 815 | 71 140 400 204 Core 5 | 1 . 4 . Treads . | . . . . Legs 609 | 70 140 195 204 Wheels 201 | . . 201 . Hover . | . . . . Flight . | . . . . Fastest Speed 50 | 50 120 83 123 Average Speed 116 | 119 120 105 132 Slowest Speed 450 | 120 120 450 200 Overloaded Moves . | . . . . Propulsion Burnouts . | . . . . Robots Hopped . | . . . . Potential Cave-ins . | . . . . Cave-ins Triggered . | . . . . Exploration Rate (%) 27 | 5 36 45 22 Regions Visited 3 Branch Regions . Pre-discovered Areas . | . . . . Known Exits Taken . | . . . . Unknown Exits Taken 3 | 1 1 1 . Scrap Searched . | . . . . Spaces Dug . | . . . . Terrain Destroyed 96 | . . 62 34 Melee . | . . . . Projectile 34 | . . . 34 AOE 62 | . . 62 . Terrain Rammed . | . . . . Walls Destroyed . | . . . . Machines Disabled . | . . . . Actions | -11 -10 -9 -8 --------- Run | Yrd Mat Mat Mat Total 1096 | 92 211 517 276 Wait 60 | . 52 1 7 Move 812 | 70 139 399 204 Hop . | . . . . Pick Up 32 | 8 3 17 4 Fast Attach 20 | 7 2 6 5 Attach 26 | . 1 15 10 Detach 6 | . . 5 1 Swap 5 | . . 5 . Drop 15 | . 7 4 4 Fire 92 | 3 7 63 19 Melee 8 | . . . 8 Ram 2 | . . 1 1 Kick 18 | 4 . 1 13 Crush . | . . . . Escape Stasis . | . . . . Rewire . | . . . . Trap . | . . . . Miscellaneous . | . . . . Route ------- -11/Scrapyard -10/Materials -9/Materials (discovered 2 exits: [*Mat] / [*Min]) -8/Materials History --------- Turn | Location | Event 13 | -11/Scrapyard | Discovered new exit (range 14) 116 | -11/Scrapyard | Entered Materials 309 | -10/Materials | Build established: Mutant 355 | -10/Materials | Discovered new exit (range 8) 366 | -10/Materials | Entered another Materials area 366 | -9/Materials | Evolved 2 slots: Propulsion x1, Utility x1 533 | -9/Materials | Lost 5 parts (1p1n1u2w) 555 | -9/Materials | Discovered new exit (range 16) 694 | -9/Materials | Lost 7 parts (2p2n1u2w) 822 | -9/Materials | Core integrity fell below 50% 979 | -9/Materials | Discovered new exit (range 12) 1029 | -9/Materials | Entered another Materials area 1029 | -8/Materials | Evolved 2 slots: Power x1, Weapon x1 1268 | -8/Materials | Build established: Gunner 1357 | -8/Materials | Core integrity fell below 50% 1418 | -8/Materials | Core integrity fell below 20% 1435 | -8/Materials | Destroyed by G-47 Trooper with Particle Gun Last Messages --------------- 01398_ Imp. Heat Sink fried. 01400_ K-01 Serf collects debris. 01406_ G-47 Trooper suffers critical hit (Smash). 01406_ Destroyed Lgt. Nuclear Core. 01406_ G-47 Trooper system corrupted by crushing effect. 01407_ G-47 Trooper system terminally corrupted. 01407_ Aluminum Leg fried. 01407_ Critical hit (Burn: +37). 01407_ K-01 Serf collects debris. 01413_ Imp. Datajack destroyed. 01415_ Imp. Deuterium Engine destroyed. 01415_ K-01 Serf collects debris. 01420_ G-47 Trooper suffers critical hit (Smash). 01420_ Destroyed Imp. Heat Sink. 01420_ G-47 Trooper system corrupted by crushing effect. 01422_ K-01 Serf collects debris. 01427_ Critical hit (Burn: +37). 01428_ K-01 Serf collects debris. 01431_ Aluminum Leg destroyed. 01432_ K-01 Serf collects debris. Map ----- +----------------------------------------------------+ | ???????????##????????????????????????????????????? | | ??????????## #####???????????????????????????????? | | ??????????#! !!#???????????????????????????????? | | ??????????# !!#???????????????????????????????? | | ??????????# #?????#####?????????????????????? | | ??????????# """ =#???? ?????????????????????? | | ??????????# "" [%#???? """ ????????????????????? | | ??????????# "" #### """ ????????????????????? | | ??????????# """ # # """ #???????????????????? | | ??????????# "" # + ]#???????????????????? | | ??????????#% % / # """ #???????????????????? | | ??????????###/#### # """ ] ????????????????????? | | ????#???? # ### #? """ ????????????????????? | | ????# ????# #? ?????????????????????? | | ????#==?? # #??#####?????????????????????? | | ?????= ? # ######????????????????????????????? | | ?????? ?## ##?????????????????????????????????? | | ??????"" ?# #??????????????????????????????????? | | ????? """ ## ############???????????????????????? | | ????? """ "# ## #???????????????????????? | | ??????????## ## #???????????????????????? | | ########+## # """ #???????????????????????? | | # """ #???????????????????????? | | Y %"" %"" #######???????? ?????? | | ### ## #YS"" # ####### ??????? | | ??# ?######gg" k @g " "??????? | | ??#! ?????#%# g # " ] "R???????? | | ??##!!!??????############# t ""???????? | | ???###???????????????????# ########+#????????? | | ?????????????????????????## ra## ?????????? | | ??????????????????????????# ## ?????????? | | ??????????????????????????# ## ?????????? | | ??????????????????????????# ## ?????????? | | ??????????????????????????# #?? ?????????? | | ??????????????????????????# #???? ?????????? | | ?????????????????????????## ##############?????? | | ?????????????????????????# #?????? | | ?????????????????????????# ##????? | | ?????????????????????????# ##???## | | ?????????????????????????# ######### #????# | | ?????????????????????????# #??## ### #????# | | ?????????????????????????############### ###### | | ???????????????????????????# = ####### | | ???????????????????????????# | | ???????????????????????????# """ | | ???????????????????????????# """" %%% | | ?????????????????????????????? """"" ####+###### | | ???????????????????????????? """"" # #? | | ???????????????????????????? """ # """ #? | | ?????????????????????????? # """ [#? | +----------------------------------------------------+ Best States ------------- Heat Dissipation 38 Energy Generation 27 Energy Capacity 480 Matter Stores 300 Matter Capacity 300 Sight Range 16 Terrain Scan Range 16 Terrain Scan Density 10 Additional Mass Support 6 Evasion (%) 55 Targeting Accuracy 6 Item Schematics ----------------- None Robot Schematics ------------------ None Fabricated ------------ Nothing Repaired ---------- Nothing Studied --------- None Alien Tech Used ----------------- None Achievements -------------- Bumper Bots Challenges ------------ None Game ------ Seed ZeronetMetamassTorch Manual? 0 Play Time 00:21:24 Cumulative 14.6 hours Start 2026.01.24 @ 19:32:26 End 2026.01.24 @ 19:53:40 Sessions 1 Manual Loads 0 Difficulty Rogue Special Mode None Game No. 19 Rogue 19 Adventurer 0 Explorer 0 Win Type - Total 0 Types 0/0/0/0/0/0/0/0/0/0 Lore% 6 Gallery% 17 Achievement% 14 Wizard Run 0 Options --------- Layout 0 ASCII 0 Keyboard 1 Movement Vi Keybinds 0 Fullscreen 1 Font 18/X11 Map View 38x25 Zoom Use 100% Tactical HUD 1 Map Filters NONE Filters NONE Steam 1 RUN: 393b43a9-3b0d-4c7d-89c8-2cc0df86ba02